[Event "3rd Manaus Open 2024"]
[Site "Manaus"]
[Date "2024.10.14"]
[Round "5.3"]
[White "Do Valle Cardoso, Lucas"]
[Black "Di Berardino, Diego Rafael"]
[Result "1/2-1/2"]
[ECO "C02"]
[WhiteElo "2375"]
[BlackElo "2479"]
[Annotator "RC"]
[PlyCount "54"]
[EventDate "2024.10.05"]
[EventType "swiss"]
[EventCountry "BRA"]
[SourceTitle "playchess.com"]
[Source "ChessBase"]
[SourceQuality "1"]
[TimeControl "5400+30"]

1. e4 {[%emt 0:02:45]} e6 {[%emt 0:00:17]} 2. d4 {[%emt 0:00:43]} d5 {[%emt 0:00:05]} 3. e5 {[%emt 0:00:11]} c5 {[%emt 0:00:11]} 4. c3 {[%emt 0:00:06]} Nc6 {[%emt 1:31:57]} 5. Nf3 {[%emt 0:00:12]} Bd7 {[%emt 0:00:00]} 6. dxc5 {[%emt 1:29:33]} Bxc5 {[%emt 0:00:00]} 7. b4 {[%emt 0:00:00]} Bb6 {[%emt 0:00:00]} 8. b5 {[%emt 0:00:00]} Na5 {[%emt 0:00:00]} 9. Bd3 {[%emt 0:00:00]} Qc7 {[%emt 0:00:00]} 10. Qe2 {[%emt 0:00:00]} Ne7 {[%emt 0:00:00]} 11. O-O {[%emt 0:00:00]} Ng6 {[%emt 0:00:00]} 12. Re1 {[%emt 0:00:00]} Nc4 {[%emt 0:00:00]} 13. Bxc4 {[%emt 0:00:00]} Qxc4 {[%emt 0:00:00]} 14. Qxc4 {[%emt 0:00:00]} dxc4 {[%emt 0:00:00]} 15. a4 {[%emt 0:00:00]} a6 {[%emt 0:00:00]} 16. bxa6 {[%emt 0:00:00]} Rxa6 {[%emt 0:00:00]} 17. Nbd2 {[%emt 0:00:00]} Bxa4 {[%emt 0:00:00]} 18. Nxc4 {[%emt 0:00:00]} Bc5 {[%emt 0:00:00]} 19. Ba3 {[%emt 0:00:00]} Bxa3 {[%emt 0:00:00]} 20. Rxa3 {[%emt 0:00:00]} O-O {[%emt 0:00:00]} 21. Nd6 {[%emt 0:00:00]} b5 {[%emt 0:00:00]} 22. Nd4 {[%emt 0:00:00]} Nxe5 {[%emt 0:00:00]} 23. N6xb5 {[%emt 0:00:00]} Nc4 {[%emt 0:00:00]} 24. Raa1 {[%emt 0:00:00]} e5 {[%emt 0:07:27]} 25. Nc7 {[%emt 0:09:30]} Ra5 26. Nf5 {[%emt 0:00:30]} Rd8 27. Nd5 {[%emt 0:00:30]} f6 {[%emt 0:04:03]} 1/2-1/2

[Event "3rd Manaus Open 2024"]
[Site "Manaus"]
[Date "2024.10.14"]
[Round "5.4"]
[White "Matsuura, Everaldo"]
[Black "Flom, Gabriel"]
[Result "1-0"]
[ECO "B22"]
[WhiteElo "2357"]
[BlackElo "2460"]
[Annotator "TA"]
[PlyCount "75"]
[EventDate "2024.10.05"]
[EventType "swiss"]
[EventCountry "BRA"]
[SourceTitle "playchess.com"]
[Source "ChessBase"]
[SourceQuality "1"]
[TimeControl "5400+30"]

{[%evp 13,75,13,9,12,10,10,10,6,7,0,0,10,0,0,10,9,358,358,343,342,293,329,454,68,61,68,66,59,114,122,122,122,121,116,241,243,225,193,864,219,222,219,29951,29948,29949,29950,29956,29960,29956,29961,29961,29962,29964,29964,29964,29961,29959,29960,29978,29965,29980,29981,29983,29983]} 1. e4 {[%emt 0:06:28]} c5 {[%emt 0:00:06]} 2. Nf3 {[%emt 0:00:22]} e6 {[%emt 0:00:12]} 3. c3 {[%emt 0:00:42]} Nf6 {[%emt 0:00:56]} 4. e5 {[%emt 0:00:18]} Nd5 {[%emt 0:00:05]} 5. d4 {[%emt 0:00:16]} cxd4 {[%emt 0:00:53]} 6. cxd4 {[%emt 0:00:13]} d6 {[%emt 0:00:03]} 7. Bc4 {[%emt 0:00:19]} Be7 {[%emt 0:01:01]} 8. O-O {[%emt 0:00:20]} O-O {[%emt 0:00:03]} 9. Qe2 {[%emt 0:00:56]} b6 {[%emt 1:31:41]} 10. Rd1 {[%emt 0:02:59] The position is equal.} Bb7 {[%emt 0:00:00]} 11. Bd2 {[%emt 0:01:20]} Nd7 {[%emt 0:00:00]} 12. Nc3 {[%emt 0:02:08]} Nxc3 {[%emt 0:00:00]} 13. Bxc3 {[%emt 0:00:23]} dxe5 {[%emt 0:00:00]} 14. d5 {[%emt 0:19:15][%cal Bd4d5,Bd5e6,Be6f7][%mdl 32]} e4 $2 {[%emt 0:00:00][%mdl 8192]} 15. dxe6 $18 {[%emt 0:04:42]} exf3 {[%emt 0:00:00]} 16. exf7+ {[%emt 0:14:01]} ({Resist} 16. gxf3 Bc6 17. exd7 Bg5 (17... Bxd7 $2 18. Rd5 $18)) 16... Kh8 {[%emt 0:00:00]} 17. Qe6 {[%emt 0:05:17]} Bc8 {[%emt 0:00:00]} 18. Bb5 $2 {[%emt 0:02:33]} (18. Qe4 $18 {Threatens to win with Bd3.} Bf6 19. Qxa8 Bxc3 20. bxc3) 18... Bf6 $1 $14 {[%emt 0:00:00] aiming for ...Bxc3.} 19. Bxd7 {[%emt 0:01:30] Black is weak on the light squares} Bxc3 {[%emt 0:00:00]} 20. bxc3 {[%emt 0:01:20]} Qg5 {[%emt 0:00:00] Black is now going downhill.} (20... fxg2 $14 21. Bxc8 Qxc8) 21. g3 $16 {[%emt 0:01:54] Active counter play!} Qh5 {[%emt 0:00:00]} 22. Bxc8 $1 {[%emt 0:12:30]} Raxc8 {[%emt 0:00:00]} 23. Rd7 $40 {[%emt 0:00:50][%mdl 128] Rad1 is the strong threat. White has strong attack.} Rxc3 {[%emt 0:00:00]} (23... Qh6 $16 24. Qg4 Rxc3) 24. Rad1 $18 {[%emt 0:02:11]} ({Less strong is} 24. Rxa7 Qc5 25. Rf1 Rc1 $14) 24... Rcc8 {[%emt 0:00:00] Prevents Rd8} 25. h4 $1 {[%emt 0:02:03]} a5 $2 {[%emt 0:00:00]} (25... Qg6 26. Qxg6 hxg6) 26. Qxb6 $2 {[%emt 0:02:22]} (26. Re7) 26... Qf5 {[%emt 0:00:00]} 27. Kh2 {[%emt 0:06:26] Prevents Qh3+} Rxf7 $2 {[%emt 0:00:00]} (27... a4 $18 28. R1d5 Qf6) 28. Rxf7 {[%emt 0:00:45] White mates.} Qxf7 {[%emt 0:00:00] [#]} 29. Rd8+ $1 {[%emt 0:00:27]} (29. Qxa5 h6 30. Rd8+ Rxd8 31. Qxd8+ Kh7 $11) 29... Rxd8 {[%emt 0:00:00]} 30. Qxd8+ {[%emt 0:00:09]} Qg8 {[%emt 0:00:00] [#]} 31. Qxg8+ $1 {[%emt 0:01:12]} Kxg8 {[%emt 0:00:00] KP-KP} 32. g4 {[%emt 0:00:13]} Kf7 {[%emt 0:00:00]} 33. Kg3 {[%emt 0:00:08]} Ke6 {[%emt 0:00:00]} 34. Kxf3 {[%emt 0:00:08]} Kd5 {[%emt 0:00:00]} 35. Ke3 {[%emt 0:00:41]} Kc4 {[%emt 0:00:00]} 36. f4 {[%emt 0:00:23][%cal Bf2f4,Bf4f5][%mdl 32]} a4 {[%emt 0:00:00][%cal Ba5a4,Ba4a3][%mdl 32]} 37. Ke4 {[%emt 0:01:47]} a3 {[%emt 0:00:00]} 38. f5 {[%emt 0:00:20] Weighted Error Value: White=0.41/Black=0.48.  Loses game:     	---       	Black=1      Missed win:     	White=1     	---        Mistake:       	White=1     	Black=4      Inaccurate:     	---       	Black=1      OK:         	White=8     	Black=7      Best:        	White=2     	Black=2      Strong:       	White=1     	Black=1} 1-0

[Event "3rd Manaus Open 2024"]
[Site "Manaus"]
[Date "2024.10.14"]
[Round "5.5"]
[White "Hoffman, Alejandro"]
[Black "Cubas, Jose Fernando"]
[Result "1/2-1/2"]
[ECO "A26"]
[WhiteElo "2356"]
[BlackElo "2412"]
[Annotator "RC"]
[PlyCount "99"]
[EventDate "2024.10.05"]
[EventType "swiss"]
[EventCountry "BRA"]
[SourceTitle "playchess.com"]
[Source "ChessBase"]
[SourceQuality "1"]
[TimeControl "5400+30"]

1. g3 {[%emt 1:31:00]} e5 {[%emt 0:02:26]} 2. Bg2 {[%emt 0:00:00]} Nf6 {[%emt 0:00:16]} 3. d3 {[%emt 0:00:00]} Nc6 {[%emt 0:04:48]} 4. c4 {[%emt 0:01:30]} g6 {[%emt 0:08:20]} 5. Nc3 {[%emt 0:00:00]} Bg7 {[%emt 0:00:04]} 6. e4 {[%emt 0:00:00]} O-O {[%emt 0:00:07]} 7. Nge2 {[%emt 0:00:00]} d6 {[%emt 0:01:20]} 8. h3 {[%emt 0:00:00]} Nd7 {[%emt 0:11:18]} 9. O-O {[%emt 0:00:00]} Nc5 {[%emt 0:01:01]} 10. Be3 {[%emt 0:00:00]} Nd4 {[%emt 0:04:57]} 11. f4 {[%emt 0:00:00]} a5 {[%emt 0:01:04]} 12. Qd2 {[%emt 0:00:00]} c6 {[%emt 0:00:51]} 13. Rf2 {[%emt 0:00:00]} Be6 {[%emt 0:05:09]} 14. Kh2 {[%emt 0:00:00]} f5 {[%emt 0:05:17]} 15. exf5 {[%emt 0:00:00]} Bxf5 {[%emt 0:03:50]} 16. Bxd4 {[%emt 0:04:02]} exd4 {[%emt 0:00:24]} 17. Ne4 {[%emt 0:00:03]} Qe7 {[%emt 0:16:16]} 18. Nxc5 {[%emt 0:01:40]} dxc5 {[%emt 0:00:02]} 19. Rd1 {[%emt 0:00:49]} Rae8 {[%emt 0:02:16]} 20. Nc1 {[%emt 0:00:19]} Qc7 {[%emt 0:00:15]} 21. Re2 {[%emt 0:00:30]} g5 {[%emt 0:04:38]} 22. Rde1 {[%emt 0:00:44]} Re3 {[%emt 0:01:18]} 23. Rxe3 {[%emt 0:00:18]} dxe3 {[%emt 0:00:02]} 24. Qxe3 {[%emt 0:00:17]} gxf4 {[%emt 0:00:04]} 25. Qxf4 {[%emt 0:00:24]} Qxf4 {[%emt 0:01:58]} 26. gxf4 {[%emt 0:00:02]} Bxb2 {[%emt 0:00:06]} 27. Nb3 {[%emt 0:02:22]} Bxd3 {[%emt 0:02:06]} 28. Nxc5 {[%emt 0:00:00]} Bxc4 {[%emt 0:00:15]} 29. Nxb7 {[%emt 0:00:00]} Bd5 {[%emt 0:13:13]} 30. Bxd5+ {[%emt 0:00:00]} cxd5 {[%emt 0:00:01]} 31. Nxa5 {[%emt 0:00:00]} Bc3 {[%emt 0:00:16]} 32. Rg1+ {[%emt 0:00:00]} Kh8 {[%emt 0:02:32]} 33. Nc6 {[%emt 0:00:43]} d4 {[%emt 0:01:50]} 34. Ne5 {[%emt 0:00:27]} Rxf4 {[%emt 0:00:19]} 35. Rg4 {[%emt 0:01:53]} Rf5 {[%emt 0:02:26]} 36. Nd3 {[%emt 0:00:03]} Ra5 {[%emt 0:00:19]} 37. Rg2 {[%emt 0:00:10]} h6 {[%emt 0:01:56]} 38. Kg3 {[%emt 0:00:24]} Rg5+ {[%emt 0:00:49]} 39. Kf3 {[%emt 0:00:08]} Rf5+ {[%emt 0:00:50]} 40. Ke4 {[%emt 0:00:08]} Ra5 {[%emt 0:00:34]} 41. Nf4 {[%emt 0:00:20]} Ra8 {[%emt 0:01:03]} 42. Nd5 {[%emt 0:00:15]} Ba1 {[%emt 0:01:04]} 43. h4 {[%emt 0:00:33]} Ra4 {[%emt 0:00:43]} 44. Kd3 {[%emt 0:00:26]} Ra3+ {[%emt 0:00:12]} 45. Kc4 {[%emt 0:00:23]} d3 {[%emt 0:00:16]} 46. Rd2 {[%emt 0:01:22]} Ra4+ {[%emt 0:00:31]} 47. Nb4 {[%emt 0:00:35]} Bf6 {[%emt 0:00:01]} 48. Kb5 {[%emt 0:00:13]} Ra3 {[%emt 0:01:03]} 49. h5 {[%emt 0:00:48]} Bc3 {[%emt 0:00:09]} 50. Rxd3 {[%emt 0:02:39]} 1/2-1/2

[Event "3rd Manaus Open 2024"]
[Site "Manaus"]
[Date "2024.10.14"]
[Round "5.6"]
[White "McDonald, Ian"]
[Black "Fier, Alexandr"]
[Result "0-1"]
[ECO "B80"]
[WhiteElo "1923"]
[BlackElo "2539"]
[Annotator "RC"]
[PlyCount "84"]
[EventDate "2024.10.05"]
[EventType "swiss"]
[EventCountry "BRA"]
[SourceTitle "playchess.com"]
[Source "ChessBase"]
[SourceQuality "1"]
[TimeControl "5400+30"]

1. e4 {[%emt 0:00:05]} c5 {[%emt 0:00:24]} 2. Nf3 {[%emt 0:00:14]} e6 {[%emt 0:00:04]} 3. d4 {[%emt 0:00:31]} cxd4 {[%emt 0:00:04]} 4. Nxd4 {[%emt 0:00:05]} Nf6 {[%emt 0:00:04]} 5. Nc3 {[%emt 0:00:11]} d6 6. Be3 {[%emt 0:00:57]} Nc6 {[%emt 0:00:24]} 7. f3 {[%emt 0:05:55]} Be7 {[%emt 0:00:13]} 8. Qd2 {[%emt 0:02:05]} O-O {[%emt 0:00:07]} 9. g4 {[%emt 0:01:26]} a6 {[%emt 0:00:05]} 10. h4 {[%emt 0:02:15]} Nd7 {[%emt 0:00:13]} 11. O-O-O {[%emt 0:00:24]} Nde5 {[%emt 1:34:22]} 12. Qg2 {[%emt 0:10:09]} Nxd4 {[%emt 0:00:00]} 13. Bxd4 {[%emt 0:00:13]} Nc6 {[%emt 0:00:00]} 14. Be3 {[%emt 0:04:07]} b5 {[%emt 0:00:00]} 15. Kb1 {[%emt 0:00:56]} Qa5 {[%emt 0:00:00]} 16. g5 {[%emt 0:07:22]} b4 {[%emt 0:00:00]} 17. Ne2 {[%emt 0:00:02]} d5 {[%emt 0:00:00]} 18. exd5 {[%emt 0:04:43]} Rd8 {[%emt 0:00:00]} 19. d6 {[%emt 0:00:38]} Rxd6 {[%emt 0:00:00]} 20. Rxd6 {[%emt 0:00:01]} Bxd6 {[%emt 0:00:00]} 21. Nc1 {[%emt 0:00:07]} Bb7 {[%emt 0:00:00]} 22. Nb3 {[%emt 0:02:41]} Qc7 {[%emt 0:00:00]} 23. Qf2 {[%emt 0:02:08]} Ne5 {[%emt 0:00:00]} 24. Bb6 {[%emt 0:09:44]} Qb8 {[%emt 0:00:00]} 25. Be2 {[%emt 0:01:28]} Bd5 {[%emt 0:00:00]} 26. Rd1 {[%emt 0:00:34]} a5 {[%emt 0:00:00]} 27. Nd2 {[%emt 0:15:44]} Ng6 {[%emt 0:00:00]} 28. Ne4 {[%emt 0:03:33]} Be5 {[%emt 0:00:00]} 29. Qc5 {[%emt 0:01:07]} Nxh4 {[%emt 0:00:00]} 30. Bxa5 {[%emt 0:03:52]} Nf5 {[%emt 0:00:00]} 31. c4 {[%emt 0:02:24]} bxc3 {[%emt 0:00:00]} 32. Nxc3 {[%emt 0:00:09]} Bd4 {[%emt 0:00:00]} 33. Qb4 {[%emt 0:02:06]} Qe5 {[%emt 0:00:00]} 34. Nxd5 {[%emt 0:10:57]} Qxd5 {[%emt 0:00:00]} 35. Bd3 {[%emt 0:00:53]} Qxf3 {[%emt 0:00:00]} 36. Qb3 {[%emt 0:05:01]} Be5 {[%emt 0:00:00]} 37. Qc2 {[%emt 0:02:33]} Rb8 {[%emt 0:00:00]} 38. Bxf5 {[%emt 0:00:39]} Rxb2+ {[%emt 0:00:00]} 39. Qxb2 {[%emt 0:00:03]} Qxd1+ {[%emt 0:00:00]} 40. Qc1 {[%emt 0:00:08]} Qxc1+ {[%emt 0:00:00]} 41. Kxc1 {[%emt 0:00:02]} exf5 {[%emt 0:00:00]} 42. Bb6 {[%emt 0:01:21]} Kf8 {[%emt 0:00:00]} 0-1

[Event "3rd Manaus Open 2024"]
[Site "Manaus"]
[Date "2024.10.14"]
[Round "5.7"]
[White "Zallio, Luciano de Souza"]
[Black "Quintiliano, Renato R."]
[Result "0-1"]
[ECO "A38"]
[WhiteElo "2114"]
[BlackElo "2513"]
[Annotator "TA"]
[PlyCount "92"]
[EventDate "2024.10.05"]
[EventType "swiss"]
[EventCountry "BRA"]
[SourceTitle "playchess.com"]
[Source "ChessBase"]
[SourceQuality "1"]
[TimeControl "5400+30"]

{[%evp 17,92,3,26,9,9,0,0,-27,-33,-21,-17,-22,-35,-33,-21,-27,-33,-41,-27,-53,-53,-58,-49,-60,-56,-60,-57,-83,-76,-85,-87,-85,-84,-95,-81,-84,-81,-83,-83,-124,-85,-85,0,0,0,-2,-4,-187,-240,-231,-214,-236,-195,-220,-211,-397,-389,-564,-540,-547,-562,-954,-620,-842,-841,-2412,-1847,-2235,-2189,-29984,-29985,-29985,-29986,-29985,-29986,-29995,-29996]} 1. Nf3 {[%emt 0:00:38]} Nf6 {[%emt 0:00:13]} 2. c4 {[%emt 1:30:52]} g6 {[%emt 0:01:20]} 3. b3 {[%emt 0:00:00]} Bg7 {[%emt 0:00:15]} 4. Bb2 {[%emt 0:00:00]} O-O {[%emt 0:00:29]} 5. g3 {[%emt 0:00:00]} d6 {[%emt 0:02:33]} 6. Bg2 {[%emt 0:00:00]} e5 {[%emt 0:00:33]} 7. d3 c5 {[%emt 0:01:55]} 8. O-O {[%emt 0:00:00]} Nc6 {[%emt 0:00:08]} 9. Nc3 h6 {[%emt 0:01:25]} 10. Re1 {[%emt 0:00:00]} Be6 {[%emt 0:00:53]} 11. Nd2 {[%emt 0:00:00]} d5 {[%emt 0:05:06]} 12. cxd5 {[%emt 0:00:00] The position is equal.} Nxd5 {[%emt 0:00:07]} 13. Nxd5 {[%emt 0:00:00]} Bxd5 {[%emt 0:00:07]} 14. Bxd5 {[%emt 0:00:00]} Qxd5 {[%emt 0:00:06]} 15. Qc2 {[%emt 0:00:00]} b6 {[%emt 0:01:24]} 16. Qc4 {[%emt 0:00:00]} Qd7 {[%emt 0:00:57]} 17. Rad1 {[%emt 0:00:00]} Kh7 {[%emt 0:10:54]} 18. Kg2 {[%emt 0:00:00]} Rac8 {[%emt 0:02:31]} 19. Rc1 {[%emt 0:00:00]} f5 {[%emt 1:09:04]} 20. Qc2 {[%emt 0:00:00]} Rfd8 {[%emt 0:00:00]} 21. Rcd1 {[%emt 0:00:00]} Qe7 {[%emt 0:00:00]} (21... Nd4 {feels hotter.} 22. Qb1 Rf8 23. Rc1 Rfe8) 22. h4 {[%emt 0:00:00]} Rf8 {[%emt 0:00:00]} 23. Qb1 {[%emt 0:00:00]} Rcd8 {[%emt 0:00:00]} 24. Bc3 {[%emt 0:00:00]} Qf7 {[%emt 0:00:00]} 25. Bb2 {[%emt 0:00:00]} Rd5 {[%emt 0:00:00]} 26. Rf1 {[%emt 0:00:00]} Re8 {[%emt 0:00:00]} 27. Nc4 {[%emt 0:00:00]} Rd7 {[%emt 0:00:00]} 28. Kg1 {[%emt 0:00:00]} b5 {[%emt 0:04:30]} 29. Nd2 {[%emt 0:00:00] [#]} e4 {[%emt 0:00:00] Black is more active.} 30. dxe4 $11 {[%emt 0:00:00]} Bxb2 {[%emt 0:00:00]} 31. Qxb2 {[%emt 0:00:00]} fxe4 {[%emt 0:01:30]} 32. Nb1 $2 {[%emt 0:02:04] [#] This move loses the game for White.} (32. f3 $11 Red8 33. Qc1 (33. fxe4 Qe6 $19)) 32... Rxd1 $1 $19 {[%emt 0:00:00]} 33. Rxd1 {[%emt 0:00:02]} e3 {[%emt 0:00:00]} 34. f3 {[%emt 0:13:54]} b4 {[%emt 0:00:00] Wards off Nc3} 35. Qc1 {[%emt 0:00:00] White is weak on the dark squares} Qf5 {[%emt 0:00:00]} (35... Nd4 36. Qxc5 Nxe2+ 37. Kg2 $11) 36. g4 $2 {[%emt 0:00:00]} (36. Qc4 {keeps fighting.} Nd4 37. a3) 36... Qe5 {[%emt 0:00:00]} 37. Kg2 {[%emt 0:00:00]} (37. Rd7+ $142 Re7 38. Rxe7+ Nxe7 (38... Qxe7 $2 39. Qc4 $19) 39. Kh1) 37... Nd4 {[%emt 0:00:00]} 38. Qc4 {[%emt 0:00:00]} Re7 {[%emt 0:00:00] Prevents Qf7+.} 39. Qd3 {[%emt 0:00:00]} Kg7 {[%emt 0:00:00] ...h5 is the strong threat.} 40. Rf1 {[%emt 0:00:00]} Ne6 {[%emt 0:00:00]} 41. Qc2 {[%emt 0:00:00]} Nf4+ {[%emt 0:00:00]} 42. Kg1 {[%emt 0:00:00]} Qf6 {[%emt 0:00:00]} 43. Qxc5 {[%emt 0:00:00]} Nxe2+ {[%emt 0:00:00] Black mates.} 44. Kg2 {[%emt 0:00:00]} Nf4+ {[%emt 0:00:00]} 45. Kg3 {[%emt 0:00:00]} e2 {[%emt 0:00:00]} 46. g5 {[%emt 0:00:00]} Nh5+ {[%emt 0:07:30] Weighted Error Value: White=0.82/Black=0.22 (precise) .  Loses game:     	White=1     	---        Mistake:       	White=2     	Black=1      Inaccurate:     	White=6     	Black=2      OK:         	White=6     	Black=9      Best:        	White=1     	Black=1      Strong:       	---       	Black=1} 0-1

[Event "3rd Manaus Open 2024"]
[Site "Manaus"]
[Date "2024.10.14"]
[Round "5.8"]
[White "Delgado Ramirez, Neuris"]
[Black "De Siqueira, Luigy Lira"]
[Result "1-0"]
[ECO "C50"]
[WhiteElo "2496"]
[BlackElo "2155"]
[Annotator "RC"]
[PlyCount "67"]
[EventDate "2024.10.05"]
[EventType "swiss"]
[EventCountry "BRA"]
[SourceTitle "playchess.com"]
[Source "ChessBase"]
[SourceQuality "1"]
[TimeControl "5400+30"]

1. e4 {[%emt 0:32:23]} e5 {[%emt 0:01:41]} 2. Nf3 {[%emt 0:00:12]} Nc6 {[%emt 0:00:06]} 3. Bc4 {[%emt 0:00:06]} Bc5 {[%emt 0:00:47]} 4. d3 {[%emt 0:00:20]} Nf6 {[%emt 0:00:25]} 5. Be3 {[%emt 0:00:23]} Bxe3 {[%emt 0:03:04]} 6. fxe3 {[%emt 0:00:07]} d6 {[%emt 0:00:11]} 7. a4 {[%emt 0:00:20]} Be6 {[%emt 0:03:11]} 8. Bxe6 {[%emt 0:00:37]} fxe6 {[%emt 0:00:11]} 9. Nbd2 {[%emt 0:00:29]} d5 {[%emt 0:02:24]} 10. O-O {[%emt 0:01:40]} Qd6 {[%emt 0:00:21]} 11. a5 {[%emt 0:05:13]} a6 {[%emt 0:04:03]} 12. Ra4 {[%emt 0:02:08]} O-O {[%emt 0:01:51]} 13. Qb1 {[%emt 0:06:24]} b5 {[%emt 0:19:03]} 14. axb6 {[%emt 0:01:41]} cxb6 {[%emt 0:00:08]} 15. exd5 {[%emt 0:16:46]} exd5 {[%emt 0:01:11]} 16. c3 {[%emt 0:01:15]} a5 {[%emt 0:08:49]} 17. Qa2 {[%emt 0:04:05]} Kh8 {[%emt 0:01:21]} 18. Rh4 {[%emt 0:03:09]} Qc5 {[%emt 0:08:59]} 19. d4 {[%emt 0:02:13]} Qe7 {[%emt 0:00:10]} 20. Rh3 {[%emt 0:06:49]} e4 {[%emt 0:09:03]} 21. Nh4 {[%emt 0:00:25]} Kg8 {[%emt 0:02:16]} 22. Rg3 {[%emt 0:01:27]} Qe6 {[%emt 0:01:30]} 23. Rg5 {[%emt 0:03:34]} h6 {[%emt 0:15:00]} 24. Rgf5 {[%emt 0:00:59]} Kh7 {[%emt 0:04:05]} 25. c4 {[%emt 0:00:32]} Ne7 {[%emt 0:05:38]} 26. cxd5 {[%emt 0:01:32]} Nexd5 {[%emt 0:00:26]} 27. Re5 {[%emt 0:01:48]} Qg4 {[%emt 0:00:22]} 28. Nf5 {[%emt 0:00:18]} Qe2 {[%emt 0:02:42]} 29. Nxe4 {[%emt 0:02:28]} Nxe4 {[%emt 0:00:41]} 30. Qxd5 {[%emt 0:00:08]} Nd2 {[%emt 0:01:56]} 31. Ra1 {[%emt 0:00:13]} Rac8 {[%emt 0:01:58]} 32. Re7 {[%emt 0:01:43]} Rc2 {[%emt 0:00:48]} 33. Rxg7+ {[%emt 0:01:39]} Kh8 {[%emt 0:00:09]} 34. Qd6 {[%emt 0:02:27]} 1-0

[Event "3rd Manaus Open 2024"]
[Site "Manaus"]
[Date "2024.10.14"]
[Round "5.9"]
[White "Rodriguez Vila, Andres"]
[Black "Souza Neves, Andrey M."]
[Result "1-0"]
[ECO "B13"]
[WhiteElo "2419"]
[BlackElo "2154"]
[Annotator "RC"]
[PlyCount "83"]
[EventDate "2024.10.05"]
[EventType "swiss"]
[EventCountry "BRA"]
[SourceTitle "playchess.com"]
[Source "ChessBase"]
[SourceQuality "1"]
[TimeControl "5400+30"]

1. d4 {[%emt 0:01:24]} d5 {[%emt 0:00:06]} 2. Nc3 {[%emt 0:00:12]} Nf6 3. Bf4 c5 {[%emt 0:00:59]} 4. e3 {[%emt 0:00:13]} cxd4 {[%emt 0:00:28]} 5. exd4 {[%emt 0:00:05]} Bg4 {[%emt 0:00:34]} 6. f3 {[%emt 0:00:05]} Bd7 {[%emt 0:00:16]} 7. Bd3 {[%emt 0:00:05]} e6 {[%emt 0:00:35]} 8. Nge2 {[%emt 0:00:34]} Be7 {[%emt 0:01:48]} 9. Qd2 {[%emt 0:00:45]} a6 {[%emt 0:00:33]} 10. a3 {[%emt 0:00:19]} Nc6 {[%emt 0:03:06]} 11. g4 {[%emt 0:00:06]} O-O {[%emt 0:03:07]} 12. h4 b5 {[%emt 0:03:47]} 13. h5 {[%emt 0:02:08]} b4 {[%emt 0:02:01]} 14. axb4 {[%emt 0:00:07]} Nxb4 {[%emt 0:00:04]} 15. g5 {[%emt 0:00:04]} Nxd3+ {[%emt 0:00:48]} 16. Qxd3 {[%emt 0:01:02]} Ne8 {[%emt 0:00:48]} 17. g6 {[%emt 0:13:33]} fxg6 {[%emt 0:04:56]} 18. hxg6 {[%emt 0:00:02]} Bh4+ {[%emt 0:01:33]} 19. Kd1 {[%emt 0:02:14]} h6 {[%emt 0:00:45]} 20. Rxa6 {[%emt 0:06:34]} Rxa6 {[%emt 0:03:23]} 21. Qxa6 {[%emt 0:02:16]} Bg5 {[%emt 0:00:14]} 22. Bxg5 {[%emt 0:02:32]} Qxg5 {[%emt 0:00:08]} 23. Rg1 {[%emt 0:01:15]} Qe3 {[%emt 0:02:02]} 24. Qb7 {[%emt 0:00:30]} Nd6 {[%emt 0:13:45]} 25. Qxd7 {[%emt 0:00:05]} Nc4 {[%emt 0:00:06]} 26. Nb1 {[%emt 0:00:07]} Nxb2+ {[%emt 0:04:48]} 27. Ke1 {[%emt 0:00:04]} Nc4 {[%emt 0:02:10]} 28. Rg3 {[%emt 0:09:21]} h5 {[%emt 0:10:52]} 29. f4 {[%emt 0:01:12]} Qe4 {[%emt 0:00:14]} 30. Nbc3 {[%emt 0:02:07]} Qh1+ {[%emt 0:01:00]} 31. Rg1 {[%emt 0:10:31]} Qh4+ {[%emt 0:12:51]} 32. Kd1 {[%emt 0:00:25]} Ne3+ {[%emt 0:05:01]} 33. Kd2 {[%emt 0:00:59]} Nc4+ {[%emt 0:00:44]} 34. Kd1 {[%emt 0:02:20]} Ne3+ {[%emt 0:01:07]} 35. Kc1 {[%emt 0:00:04]} Qf6 {[%emt 0:04:07]} 36. Rg5 {[%emt 0:00:20]} h4 {[%emt 0:01:18]} 37. Re5 {[%emt 0:00:48]} Ng2 {[%emt 0:04:01]} 38. Rxe6 {[%emt 0:01:03]} Qf5 {[%emt 0:00:20]} 39. Qxd5 {[%emt 0:00:09]} Qxd5 {[%emt 0:00:10]} 40. Nxd5 {[%emt 0:00:03]} h3 {[%emt 0:00:12]} 41. Ne7+ {[%emt 0:00:11]} Kh8 {[%emt 0:00:08]} 42. Re5 {[%emt 0:00:09]} 1-0